[Event "13 Open de Quenza"]
[Site "Quenza, France"]
[Date "2024.07.07"]
[Round "2.6"]
[White "Dourerassou, Jonathan"]
[Black "Geronimi, Jean-Thomas"]
[Result "1-0"]
[TimeControl "5min+3s/move"]
[WhiteElo "2422"]
[BlackElo "2065"]

1. e4 {[%clk 00:05:03]} {[%emt 00:14:49]} c5 {[%clk 00:05:03]} {[%emt
00:00:02]} 2. Nf3 {[%clk 00:05:03]} {[%emt 00:00:01]} d6 {[%clk 00:05:03]} 3.
Bb5+ {[%clk 00:05:03]} {[%emt 00:00:02]} Nd7 {[%clk 00:05:03]} {[%emt
00:00:01]} 4. O-O {[%clk 00:05:03]} {[%emt 00:00:02]} Ngf6 {[%clk 00:05:03]}
{[%emt 00:00:02]} 5. Re1 {[%clk 00:05:03]} {[%emt 00:00:01]} a6 {[%clk
00:05:03]} {[%emt 00:00:03]} 6. Bf1 {[%clk 00:05:03]} {[%emt 00:00:01]} e6
{[%clk 00:05:01]} {[%emt 00:00:06]} 7. a4 {[%clk 00:05:03]} {[%emt 00:00:01]}
Be7 {[%clk 00:05:00]} {[%emt 00:00:03]} 8. Nc3 {[%clk 00:05:03]} {[%emt
00:00:02]} O-O {[%clk 00:05:00]} {[%emt 00:00:03]} 9. d4 {[%clk 00:05:03]}
{[%emt 00:00:01]} cxd4 {[%clk 00:04:27]} {[%emt 00:00:36]} 10. Qxd4 {[%clk
00:05:03]} {[%emt 00:00:01]} Qc7 {[%clk 00:04:16]} {[%emt 00:00:15]} 11. a5
{[%clk 00:05:03]} {[%emt 00:00:03]} b5 {[%clk 00:04:12]} {[%emt 00:00:07]} 12.
axb6 {[%clk 00:05:03]} {[%emt 00:00:02]} Qxb6 {[%clk 00:03:22]} {[%emt
00:00:53]} 13. Be3 {[%clk 00:05:03]} {[%emt 00:00:01]} Qxd4 {[%clk 00:03:19]}
{[%emt 00:00:06]} 14. Nxd4 {[%clk 00:05:03]} {[%emt 00:00:02]} Bb7 {[%clk
00:03:19]} {[%emt 00:00:02]} 15. f3 {[%clk 00:05:01]} {[%emt 00:00:05]} Rfc8
{[%clk 00:03:09]} {[%emt 00:00:13]} 16. Nb3 {[%clk 00:05:01]} {[%emt 00:00:02]}
d5 {[%clk 00:03:02]} {[%emt 00:00:10]} 17. Na5 {[%clk 00:04:59]} {[%emt
00:00:06]} Bc6 {[%clk 00:02:16]} {[%emt 00:00:49]} 18. Nxc6 {[%clk 00:04:50]}
{[%emt 00:00:12]} Rxc6 {[%clk 00:02:16]} {[%emt 00:00:01]} 19. exd5 {[%clk
00:04:47]} {[%emt 00:00:05]} Nxd5 {[%clk 00:02:16]} {[%emt 00:00:03]} 20. Nxd5
{[%clk 00:04:47]} {[%emt 00:00:02]} exd5 {[%clk 00:02:16]} {[%emt 00:00:01]} 21.
Bb5 {[%clk 00:04:47]} {[%emt 00:00:02]} Rc7 {[%clk 00:02:00]} {[%emt 00:00:19]}
22. Bf4 {[%clk 00:04:47]} {[%emt 00:00:05]} Bc5+ {[%clk 00:02:00]} 23. Kh1
{[%clk 00:04:47]} {[%emt 00:00:01]} Rca7 {[%clk 00:01:47]} {[%emt 00:00:16]} 24.
Bc6 {[%clk 00:04:47]} {[%emt 00:00:02]} Rc8 {[%clk 00:01:40]} {[%emt 00:00:09]}
25. Bxd5 {[%clk 00:04:47]} {[%emt 00:00:03]} Nf6 {[%clk 00:01:31]} {[%emt
00:00:11]} 26. Bc4 {[%clk 00:04:35]} {[%emt 00:00:15]} Bf2 {[%clk 00:01:28]}
{[%emt 00:00:06]} 27. Red1 {[%clk 00:04:35]} {[%emt 00:00:02]} h6 {[%clk
00:01:07]} {[%emt 00:00:25]} 28. Bb3 {[%emt 00:00:09]} Nh5 {[%clk 00:00:50]}
{[%emt 00:00:19]} 29. Be5 {[%clk 00:04:26]} {[%emt 00:00:06]} Re7 {[%clk
00:00:44]} {[%emt 00:00:09]} 30. Bd6 {[%clk 00:04:19]} {[%emt 00:00:10]} Re2
{[%clk 00:00:19]} {[%emt 00:00:29]} 31. Rxa6 {[%clk 00:04:04]} {[%emt
00:00:18]} Rd8 {[%clk 00:00:15]} {[%emt 00:00:06]} 32. Raa1 {[%clk 00:03:55]}
{[%emt 00:00:12]} Rde8 {[%clk 00:00:13]} {[%emt 00:00:05]} 33. Ba4 {[%clk
00:03:43]} {[%emt 00:00:14]} R8e6 {[%clk 00:00:11]} {[%emt 00:00:04]} 34. Bd7
{[%clk 00:03:39]} {[%emt 00:00:09]} Rf6 {[%clk 00:00:09]} {[%emt 00:00:06]} 35.
Bg4 {[%clk 00:03:31]} {[%emt 00:00:10]} Nf4 {[%clk 00:00:06]} {[%emt 00:00:06]}
36. g3 {[%clk 00:03:01]} {[%emt 00:00:33]} Ng6 {[%clk 00:00:06]} {[%emt
00:00:03]} 37. f4 {[%clk 00:02:44]} {[%emt 00:00:20]} Rxc2 {[%clk 00:00:06]}
{[%emt 00:00:02]} 38. f5 {[%clk 00:02:44]} {[%emt 00:00:01]} 1-0

[Event "13 Open de Quenza"]
[Site "Quenza, France"]
[Date "2024.07.07"]
[Round "2.7"]
[White "Cirina, Gian Luca"]
[Black "Maze, Sebastien"]
[Result "0-1"]
[TimeControl "5min+3s/move"]
[WhiteElo "1199"]
[BlackElo "2553"]

1. c4 {[%clk 00:05:03]} Nf6 {[%clk 00:05:03]} {[%emt 00:00:01]} 2. Nc3 {[%clk
00:05:03]} {[%emt 00:00:01]} g6 {[%clk 00:05:03]} {[%emt 00:00:01]} 3. d4
{[%clk 00:05:03]} {[%emt 00:00:02]} Bg7 {[%clk 00:05:03]} 4. g3 {[%clk
00:04:55]} {[%emt 00:00:11]} d6 {[%clk 00:05:03]} {[%emt 00:00:02]} 5. Bg2
{[%clk 00:04:55]} {[%emt 00:00:02]} O-O {[%clk 00:05:03]} {[%emt 00:00:02]} 6.
h3 {[%clk 00:04:50]} {[%emt 00:00:08]} c6 {[%clk 00:04:58]} {[%emt 00:00:08]} 7.
e4 {[%clk 00:04:45]} {[%emt 00:00:09]} e5 {[%clk 00:04:55]} {[%emt 00:00:07]} 8.
dxe5 {[%clk 00:04:13]} {[%emt 00:00:34]} dxe5 {[%clk 00:04:55]} {[%emt
00:00:01]} 9. Qxd8 {[%clk 00:04:12]} {[%emt 00:00:04]} Rxd8 {[%clk 00:04:55]}
{[%emt 00:00:01]} 10. Nf3 {[%clk 00:04:02]} {[%emt 00:00:13]} Na6 {[%clk
00:04:52]} {[%emt 00:00:06]} 11. Be3 {[%clk 00:03:56]} {[%emt 00:00:08]} Nb4
{[%clk 00:04:43]} {[%emt 00:00:12]} 12. Ke2 {[%clk 00:03:19]} {[%emt 00:00:39]}
Nc2 {[%clk 00:04:33]} {[%emt 00:00:13]} 13. Rad1 {[%clk 00:02:43]} {[%emt
00:00:40]} Re8 {[%clk 00:04:33]} {[%emt 00:00:02]} 14. Rd3 {[%clk 00:02:09]}
{[%emt 00:00:35]} Nxe3 {[%clk 00:04:33]} {[%emt 00:00:04]} 15. Kxe3 {[%clk
00:02:07]} {[%emt 00:00:05]} Nd7 {[%clk 00:04:14]} {[%emt 00:00:21]} 16. Rhd1
{[%clk 00:01:54]} {[%emt 00:00:16]} Nc5 {[%clk 00:04:14]} {[%emt 00:00:01]} 17.
Rd8 {[%clk 00:01:51]} {[%emt 00:00:05]} Be6 {[%clk 00:04:14]} {[%emt 00:00:02]}
18. Rxa8 {[%clk 00:01:48]} {[%emt 00:00:06]} Rxa8 {[%clk 00:04:14]} 19. b3
{[%clk 00:01:48]} f6 {[%clk 00:03:59]} {[%emt 00:00:19]} 20. Bf1 {[%clk
00:01:30]} {[%emt 00:00:21]} Bh6+ {[%clk 00:03:52]} {[%emt 00:00:10]} 21. Ke2
{[%clk 00:01:30]} {[%emt 00:00:03]} a5 {[%clk 00:03:50]} {[%emt 00:00:06]} 22.
Rd6 {[%clk 00:00:50]} {[%emt 00:00:43]} Kf7 {[%clk 00:03:45]} {[%emt 00:00:08]}
23. Ke1 {[%clk 00:00:35]} {[%emt 00:00:18]} Ke7 {[%clk 00:03:45]} {[%emt
00:00:02]} 24. Rd1 {[%clk 00:00:35]} {[%emt 00:00:03]} Na6 {[%clk 00:03:12]}
{[%emt 00:00:36]} 25. g4 {[%clk 00:00:35]} {[%emt 00:00:02]} Nb4 {[%clk
00:03:07]} {[%emt 00:00:09]} 26. g5 {[%clk 00:00:35]} {[%emt 00:00:02]} Bxg5
{[%clk 00:03:07]} {[%emt 00:00:02]} 27. Nxg5 {[%clk 00:00:35]} {[%emt
00:00:01]} fxg5 {[%clk 00:03:07]} {[%emt 00:00:01]} 28. Ke2 {[%clk 00:00:20]}
{[%emt 00:00:18]} Nc2 {[%clk 00:03:07]} {[%emt 00:00:02]} 29. Na4 {[%clk
00:00:07]} {[%emt 00:00:22]} Nd4+ {[%clk 00:03:07]} {[%emt 00:00:03]} 30. Ke3
{[%clk 00:00:07]} {[%emt 00:00:02]} Rf8 {[%clk 00:03:07]} {[%emt 00:00:02]} 31.
Bg2 {[%clk 00:00:05]} {[%emt 00:00:05]} Bxh3 {[%clk 00:03:07]} {[%emt
00:00:03]} 32. Kxd4 {[%emt 00:00:06]} 0-1

[Event "13 Open de Quenza"]
[Site "Quenza, France"]
[Date "2024.07.07"]
[Round "2.8"]
[White "Maurizzi, Marc Andria"]
[Black "Chokbengboun, Thomas"]
[Result "1-0"]
[TimeControl "5min+3s/move"]
[WhiteElo "2620"]
[BlackElo "1856"]

1. d4 {[%clk 00:05:03]} {[%emt 00:00:02]} d6 {[%clk 00:05:03]} {[%emt
00:00:02]} 2. e4 {[%clk 00:05:03]} f5 {[%clk 00:05:03]} {[%emt 00:00:03]} 3.
Nc3 {[%clk 00:05:03]} {[%emt 00:00:04]} fxe4 {[%clk 00:05:03]} {[%emt
00:00:03]} 4. Nxe4 {[%clk 00:05:03]} {[%emt 00:00:02]} Nf6 {[%clk 00:05:02]}
{[%emt 00:00:05]} 5. Nxf6+ {[%clk 00:05:03]} {[%emt 00:00:02]} exf6 {[%clk
00:05:00]} {[%emt 00:00:05]} 6. Bd3 {[%clk 00:05:03]} Nc6 {[%clk 00:04:50]}
{[%emt 00:00:14]} 7. Nf3 {[%clk 00:04:57]} {[%emt 00:00:08]} g6 {[%clk
00:04:48]} {[%emt 00:00:06]} 8. O-O {[%clk 00:04:57]} {[%emt 00:00:02]} Bg7
{[%clk 00:04:43]} {[%emt 00:00:08]} 9. Re1+ {[%clk 00:04:47]} {[%emt 00:00:13]}
Kf7 {[%clk 00:04:30]} {[%emt 00:00:16]} 10. c3 {[%clk 00:04:47]} Re8 {[%clk
00:04:29]} {[%emt 00:00:05]} 11. Qb3+ {[%clk 00:04:44]} {[%emt 00:00:06]} d5
{[%clk 00:04:08]} {[%emt 00:00:24]} 12. Rxe8 {[%clk 00:04:44]} {[%emt
00:00:02]} Kxe8 {[%clk 00:04:05]} {[%emt 00:00:06]} 13. Bf4 {[%clk 00:04:44]}
{[%emt 00:00:02]} Ne7 {[%clk 00:03:24]} {[%emt 00:00:44]} 14. Re1 {[%clk
00:04:44]} {[%emt 00:00:02]} Kf8 {[%clk 00:03:08]} {[%emt 00:00:19]} 15. h4
{[%clk 00:04:44]} {[%emt 00:00:02]} c6 {[%clk 00:03:00]} {[%emt 00:00:11]} 16.
Qa3 {[%clk 00:04:44]} {[%emt 00:00:02]} Kf7 {[%clk 00:02:53]} {[%emt 00:00:11]}
17. Bd6 {[%clk 00:04:41]} {[%emt 00:00:05]} Bf8 {[%clk 00:02:36]} {[%emt
00:00:20]} 18. c4 {[%clk 00:04:41]} {[%emt 00:00:02]} Nf5 {[%clk 00:02:30]}
{[%emt 00:00:09]} 19. Bxf8 {[%clk 00:04:40]} {[%emt 00:00:04]} Qxf8 {[%clk
00:02:30]} {[%emt 00:00:03]} 20. Qb3 {[%clk 00:04:40]} Qd6 {[%clk 00:02:12]}
{[%emt 00:00:21]} 21. cxd5 {[%clk 00:04:34]} {[%emt 00:00:09]} cxd5 {[%clk
00:02:11]} {[%emt 00:00:04]} 22. Bxf5 {[%clk 00:04:31]} {[%emt 00:00:06]} gxf5
{[%clk 00:02:09]} {[%emt 00:00:05]} 23. Qe3 {[%clk 00:04:31]} {[%emt 00:00:01]}
Bd7 {[%clk 00:02:01]} {[%emt 00:00:11]} 24. Qh6 {[%clk 00:04:31]} {[%emt
00:00:01]} Kg8 {[%clk 00:01:53]} {[%emt 00:00:11]} 25. Ng5 {[%clk 00:04:31]}
1-0

[Event "13 Open de Quenza"]
[Site "Quenza, France"]
[Date "2024.07.07"]
[Round "2.9"]
[White "Sabiani, Chjara"]
[Black "Travadon, Loic"]
[Result "0-1"]
[TimeControl "5min+3s/move"]
[WhiteElo "1841"]
[BlackElo "2458"]

1. d4 {[%clk 00:05:03]} {[%emt 00:17:10]} Nf6 {[%clk 00:05:02]} {[%emt
00:00:22]} 2. c4 {[%clk 00:05:03]} {[%emt 00:00:01]} e6 {[%clk 00:05:02]}
{[%emt 00:00:02]} 3. Nf3 {[%clk 00:05:03]} {[%emt 00:00:02]} Bb4+ {[%clk
00:04:59]} {[%emt 00:00:06]} 4. Bd2 {[%clk 00:05:03]} {[%emt 00:00:02]} Qe7
{[%clk 00:04:51]} {[%emt 00:00:11]} 5. g3 {[%clk 00:04:52]} {[%emt 00:00:15]}
Nc6 {[%clk 00:04:50]} {[%emt 00:00:04]} 6. Bg2 {[%clk 00:04:52]} {[%emt
00:00:02]} Bxd2+ {[%clk 00:04:50]} {[%emt 00:00:03]} 7. Nbxd2 {[%clk 00:04:52]}
{[%emt 00:00:02]} O-O {[%clk 00:04:48]} {[%emt 00:00:04]} 8. O-O {[%clk
00:04:52]} {[%emt 00:00:04]} d6 {[%clk 00:04:48]} {[%emt 00:00:02]} 9. e4
{[%clk 00:04:42]} {[%emt 00:00:13]} e5 {[%clk 00:04:48]} {[%emt 00:00:03]} 10.
d5 {[%clk 00:04:41]} {[%emt 00:00:05]} Nb8 {[%clk 00:04:46]} {[%emt 00:00:05]}
11. b4 {[%clk 00:04:20]} {[%emt 00:00:24]} c6 {[%clk 00:04:28]} {[%emt
00:00:20]} 12. Qb3 {[%clk 00:04:01]} {[%emt 00:00:23]} Bg4 {[%clk 00:04:15]}
{[%emt 00:00:16]} 13. Rac1 {[%clk 00:03:39]} {[%emt 00:00:25]} Nbd7 {[%clk
00:03:50]} {[%emt 00:00:28]} 14. h3 {[%clk 00:03:29]} {[%emt 00:00:13]} Bxf3
{[%clk 00:03:47]} {[%emt 00:00:06]} 15. Qxf3 {[%clk 00:03:11]} {[%emt
00:00:20]} a5 {[%clk 00:03:46]} {[%emt 00:00:04]} 16. a3 {[%clk 00:03:11]}
{[%emt 00:00:03]} axb4 {[%clk 00:03:46]} {[%emt 00:00:04]} 17. axb4 {[%clk
00:03:11]} c5 {[%clk 00:03:33]} {[%emt 00:00:15]} 18. b5 {[%clk 00:03:05]}
{[%emt 00:00:09]} Ra2 {[%clk 00:03:33]} {[%emt 00:00:02]} 19. Qc3 {[%clk
00:03:01]} {[%emt 00:00:07]} Rfa8 {[%clk 00:03:29]} {[%emt 00:00:08]} 20. Ra1
{[%clk 00:03:00]} {[%emt 00:00:04]} Qd8 {[%clk 00:03:18]} {[%emt 00:00:13]} 21.
Rxa2 {[%clk 00:02:56]} {[%emt 00:00:08]} Rxa2 {[%clk 00:03:18]} {[%emt
00:00:02]} 22. Ra1 {[%clk 00:02:54]} {[%emt 00:00:06]} Qa8 {[%clk 00:03:18]}
{[%emt 00:00:02]} 23. Rxa2 {[%clk 00:02:54]} {[%emt 00:00:03]} Qxa2 {[%clk
00:03:18]} {[%emt 00:00:02]} 24. f4 {[%clk 00:02:46]} {[%emt 00:00:11]} h5
{[%clk 00:03:16]} {[%emt 00:00:05]} 25. f5 {[%clk 00:02:21]} {[%emt 00:00:28]}
Nb6 {[%clk 00:03:05]} {[%emt 00:00:14]} 26. Kh2 {[%clk 00:02:06]} {[%emt
00:00:18]} h4 {[%clk 00:02:41]} {[%emt 00:00:27]} 27. g4 {[%clk 00:02:02]}
{[%emt 00:00:07]} Nh7 {[%clk 00:02:41]} {[%emt 00:00:02]} 28. Nb3 {[%clk
00:01:40]} {[%emt 00:00:25]} Ng5 {[%clk 00:02:34]} {[%emt 00:00:10]} 29. Qd3
{[%clk 00:01:22]} {[%emt 00:00:21]} Nxe4 {[%clk 00:02:22]} {[%emt 00:00:15]} 30.
Qxe4 {[%clk 00:01:20]} {[%emt 00:00:05]} Qxb3 {[%clk 00:02:22]} {[%emt
00:00:03]} 31. Bf1 {[%clk 00:01:20]} {[%emt 00:00:01]} Nd7 {[%clk 00:02:07]}
{[%emt 00:00:18]} 32. g5 {[%clk 00:01:20]} {[%emt 00:00:01]} Qg3+ {[%clk
00:02:07]} {[%emt 00:00:03]} 33. Kh1 {[%clk 00:01:20]} {[%emt 00:00:02]} Qxg5
{[%clk 00:02:07]} {[%emt 00:00:03]} 34. Qg4 {[%clk 00:00:56]} {[%emt 00:00:27]}
Qc1 {[%clk 00:01:42]} {[%emt 00:00:28]} 35. Kg2 {[%clk 00:00:48]} {[%emt
00:00:11]} Qd2+ {[%clk 00:01:42]} {[%emt 00:00:03]} 36. Kh1 {[%clk 00:00:44]}
{[%emt 00:00:08]} Qd4 {[%clk 00:01:42]} {[%emt 00:00:03]} 37. Qg5 {[%clk
00:00:28]} {[%emt 00:00:19]} Nf6 {[%clk 00:01:38]} {[%emt 00:00:07]} 38. Bg2
{[%clk 00:00:28]} {[%emt 00:00:03]} b6 {[%clk 00:01:37]} {[%emt 00:00:05]} 39.
Kh2 {[%clk 00:00:26]} {[%emt 00:00:05]} Qxc4 {[%clk 00:01:36]} {[%emt
00:00:03]} 40. Kh1 {[%clk 00:00:18]} {[%emt 00:00:10]} Qd4 {[%clk 00:01:36]}
{[%emt 00:00:03]} 41. Kh2 {[%clk 00:00:18]} {[%emt 00:00:02]} c4 {[%clk
00:01:36]} {[%emt 00:00:03]} 42. Qc1 {[%clk 00:00:18]} {[%emt 00:00:02]} Qf4+
{[%clk 00:01:32]} {[%emt 00:00:07]} 43. Qxf4 {[%clk 00:00:18]} {[%emt
00:00:02]} exf4 {[%clk 00:01:32]} {[%emt 00:00:01]} 44. Bf3 {[%clk 00:00:18]}
{[%emt 00:00:03]} c3 {[%clk 00:01:26]} {[%emt 00:00:10]} 45. Bd1 {[%clk
00:00:18]} {[%emt 00:00:01]} Nxd5 {[%clk 00:01:26]} {[%emt 00:00:02]} 0-1

[Event "13 Open de Quenza"]
[Site "Quenza, France"]
[Date "2024.07.07"]
[Round "2.10"]
[White "Relange, Eloi"]
[Black "Charni, Ilyes"]
[Result "1-0"]
[TimeControl "5min+3s/move"]
[WhiteElo "2440"]
[BlackElo "1858"]

1. d4 {[%clk 00:05:03]} {[%emt 00:00:02]} Nf6 {[%clk 00:05:03]} 2. c4 {[%clk
00:05:03]} {[%emt 00:00:02]} e6 {[%clk 00:05:03]} 3. Nc3 {[%clk 00:05:03]}
{[%emt 00:00:02]} Bb4 {[%clk 00:05:03]} {[%emt 00:00:01]} 4. e3 {[%clk
00:05:03]} b6 {[%clk 00:05:01]} {[%emt 00:00:06]} 5. Nge2 {[%clk 00:05:03]}
{[%emt 00:00:03]} Bb7 {[%clk 00:05:01]} {[%emt 00:00:02]} 6. a3 {[%clk
00:05:03]} {[%emt 00:00:02]} Bxc3+ {[%clk 00:05:01]} {[%emt 00:00:01]} 7. Nxc3
{[%clk 00:05:03]} {[%emt 00:00:01]} O-O {[%clk 00:04:58]} {[%emt 00:00:05]} 8.
f3 {[%clk 00:05:01]} {[%emt 00:00:06]} d6 {[%clk 00:04:57]} {[%emt 00:00:04]} 9.
Bd3 {[%clk 00:04:58]} {[%emt 00:00:05]} Nbd7 {[%clk 00:04:40]} {[%emt
00:00:20]} 10. O-O {[%clk 00:04:57]} {[%emt 00:00:04]} e5 {[%clk 00:04:36]}
{[%emt 00:00:07]} 11. d5 {[%clk 00:04:51]} {[%emt 00:00:09]} Qe7 {[%clk
00:03:53]} {[%emt 00:00:46]} 12. b4 {[%clk 00:04:47]} {[%emt 00:00:07]} a5
{[%clk 00:03:47]} {[%emt 00:00:10]} 13. Bb2 {[%clk 00:04:47]} {[%emt 00:00:02]}
Rfe8 {[%clk 00:03:25]} {[%emt 00:00:25]} 14. Qc2 {[%clk 00:04:47]} {[%emt
00:00:03]} h6 {[%clk 00:03:07]} {[%emt 00:00:20]} 15. Qf2 {[%clk 00:04:42]}
{[%emt 00:00:08]} Nf8 {[%clk 00:02:32]} {[%emt 00:00:39]} 16. Rac1 {[%clk
00:04:40]} {[%emt 00:00:04]} Bc8 {[%clk 00:02:17]} {[%emt 00:00:19]} 17. Nb5
{[%clk 00:04:40]} {[%emt 00:00:03]} Ba6 {[%clk 00:01:53]} {[%emt 00:00:27]} 18.
Rfd1 {[%clk 00:03:42]} {[%emt 00:01:01]} axb4 {[%clk 00:01:38]} {[%emt
00:00:18]} 19. axb4 {[%clk 00:03:42]} Bxb5 {[%clk 00:01:15]} {[%emt 00:00:27]}
20. cxb5 {[%clk 00:03:42]} {[%emt 00:00:01]} Ra7 {[%clk 00:01:11]} {[%emt
00:00:07]} 21. Bb1 {[%clk 00:03:40]} {[%emt 00:00:05]} Rea8 {[%clk 00:00:57]}
{[%emt 00:00:17]} 22. Rc6 {[%clk 00:03:31]} {[%emt 00:00:12]} N8d7 {[%clk
00:00:48]} {[%emt 00:00:12]} 23. Qd2 {[%clk 00:03:20]} {[%emt 00:00:14]} Nb8
{[%clk 00:00:46]} {[%emt 00:00:06]} 24. Rcc1 {[%clk 00:03:18]} {[%emt
00:00:04]} Qe8 {[%clk 00:00:44]} {[%emt 00:00:05]} 25. Qd3 {[%clk 00:03:18]}
{[%emt 00:00:02]} Ra4 {[%clk 00:00:39]} {[%emt 00:00:08]} 26. Rxc7 {[%clk
00:02:41]} {[%emt 00:00:40]} Rxb4 {[%clk 00:00:39]} {[%emt 00:00:02]} 27. Bc3
{[%clk 00:02:41]} {[%emt 00:00:01]} Rxb5 {[%clk 00:00:33]} {[%emt 00:00:09]} 28.
Qf5 {[%clk 00:01:57]} {[%emt 00:00:47]} Na6 {[%clk 00:00:32]} {[%emt 00:00:05]}
29. Rc6 {[%clk 00:01:56]} {[%emt 00:00:04]} Rc5 {[%clk 00:00:24]} {[%emt
00:00:11]} 30. Rxd6 {[%clk 00:01:48]} {[%emt 00:00:11]} Rxc3 {[%clk 00:00:16]}
{[%emt 00:00:11]} 31. Rxf6 {[%clk 00:01:48]} {[%emt 00:00:01]} gxf6 {[%clk
00:00:16]} {[%emt 00:00:01]} 32. d6 {[%clk 00:01:45]} {[%emt 00:00:06]} Qc6
{[%clk 00:00:09]} {[%emt 00:00:10]} 33. Qh7+ {[%clk 00:01:42]} {[%emt
00:00:06]} Kf8 {[%clk 00:00:09]} {[%emt 00:00:03]} 34. Qh8# {[%emt 00:00:01]}
1-0

[Event "13 Open de Quenza"]
[Site "Quenza, France"]
[Date "2024.07.07"]
[Round "2.11"]
[White "Don Ignazi, Pierre Ange"]
[Black "Glek, Igor"]
[Result "0-1"]
[TimeControl "5min+3s/move"]
[WhiteElo "1870"]
[BlackElo "2396"]

1. e4 {[%clk 00:05:03]} {[%emt 00:00:02]} c5 {[%clk 00:05:03]} {[%emt
00:00:01]} 2. Nf3 {[%clk 00:05:03]} a6 {[%clk 00:05:03]} {[%emt 00:00:01]} 3.
g3 {[%clk 00:05:03]} {[%emt 00:00:02]} Nc6 {[%clk 00:05:03]} {[%emt 00:00:01]}
4. Bg2 {[%clk 00:05:03]} e5 {[%clk 00:05:03]} {[%emt 00:00:01]} 5. O-O {[%clk
00:05:03]} {[%emt 00:00:02]} g6 {[%clk 00:05:03]} {[%emt 00:00:01]} 6. d3
{[%clk 00:05:03]} {[%emt 00:00:02]} Bg7 {[%clk 00:05:03]} 7. Nbd2 {[%clk
00:05:01]} {[%emt 00:00:05]} Nge7 {[%clk 00:05:03]} {[%emt 00:00:02]} 8. Re1
{[%clk 00:04:46]} {[%emt 00:00:19]} O-O {[%clk 00:05:03]} {[%emt 00:00:03]} 9.
c3 {[%clk 00:04:38]} {[%emt 00:00:11]} d6 {[%clk 00:05:03]} {[%emt 00:00:03]}
10. Qe2 {[%clk 00:04:38]} {[%emt 00:00:02]} f5 {[%clk 00:04:59]} {[%emt
00:00:07]} 11. a4 {[%clk 00:03:53]} {[%emt 00:00:48]} h6 {[%clk 00:04:51]}
{[%emt 00:00:11]} 12. Nf1 {[%clk 00:03:23]} {[%emt 00:00:33]} f4 {[%clk
00:04:47]} {[%emt 00:00:07]} 13. h3 {[%clk 00:03:00]} {[%emt 00:00:27]} g5
{[%clk 00:04:41]} {[%emt 00:00:09]} 14. g4 {[%clk 00:02:34]} {[%emt 00:00:29]}
Ng6 {[%clk 00:04:41]} {[%emt 00:00:01]} 15. Bd2 {[%clk 00:01:49]} {[%emt
00:00:48]} Be6 {[%clk 00:04:40]} {[%emt 00:00:03]} 16. N1h2 {[%clk 00:01:37]}
{[%emt 00:00:16]} b5 {[%clk 00:04:35]} {[%emt 00:00:07]} 17. axb5 {[%clk
00:01:37]} {[%emt 00:00:03]} axb5 {[%clk 00:04:35]} {[%emt 00:00:01]} 18. Qd1
{[%clk 00:01:19]} {[%emt 00:00:20]} Qb6 {[%clk 00:04:26]} {[%emt 00:00:12]} 19.
Qc2 {[%clk 00:01:14]} {[%emt 00:00:08]} b4 {[%clk 00:04:26]} {[%emt 00:00:01]}
20. c4 {[%clk 00:01:14]} {[%emt 00:00:02]} b3 {[%clk 00:04:25]} {[%emt
00:00:04]} 21. Qd1 {[%clk 00:00:52]} {[%emt 00:00:25]} Ra2 {[%clk 00:04:18]}
{[%emt 00:00:10]} 22. Bc3 {[%clk 00:00:52]} {[%emt 00:00:02]} Rfa8 {[%clk
00:04:15]} {[%emt 00:00:06]} 23. Rxa2 {[%clk 00:00:52]} {[%emt 00:00:03]} bxa2
{[%clk 00:04:11]} {[%emt 00:00:06]} 24. Qa1 {[%clk 00:00:32]} {[%emt 00:00:23]}
Nb4 {[%clk 00:04:10]} {[%emt 00:00:04]} 25. Bxb4 {[%clk 00:00:28]} {[%emt
00:00:07]} Qxb4 {[%clk 00:04:02]} {[%emt 00:00:11]} 26. Nf1 {[%clk 00:00:24]}
{[%emt 00:00:07]} Qb3 {[%clk 00:03:56]} {[%emt 00:00:09]} 27. Rd1 {[%clk
00:00:15]} {[%emt 00:00:12]} Qxd1 {[%clk 00:03:56]} {[%emt 00:00:02]} 28. Qxd1
{[%clk 00:00:12]} {[%emt 00:00:06]} a1=Q {[%clk 00:03:56]} {[%emt 00:00:03]} 29.
Qb3 {[%clk 00:00:12]} {[%emt 00:00:01]} Qa7 {[%clk 00:03:51]} {[%emt 00:00:07]}
30. N1d2 {[%clk 00:00:11]} {[%emt 00:00:05]} Rb8 {[%emt 00:00:01]} 31. Qc3 Qa1+
{[%clk 00:03:48]} {[%emt 00:00:05]} 32. Kh2 {[%clk 00:00:11]} {[%emt 00:00:02]}
Qxb2 {[%clk 00:03:48]} {[%emt 00:00:02]} 0-1